[Event "Germany Countries-chT Youth 2022"]
[Site "Wiesbaden"]
[Date "2022.10.03"]
[Round "5"]
[White "Haubold, Sebastian Marcel"]
[Black "Jaskulski, Jan"]
[Result "1-0"]
[ECO "B88"]
[WhiteElo "2039"]
[BlackElo "1849"]
[Annotator "TA"]
[PlyCount "37"]
[EventDate "2022.09.28"]
[EventType "team-tourn"]
[EventRounds "7"]
[EventCountry "GER"]
[SourceTitle "playchess.com"]
[Source "ChessBase"]
[SourceQuality "1"]
[TimeControl "40/5400+30:1800+30"]

{[%evp 22,37,41,38,33,36,47,15,11,0,95,0,20,28,912,890,29991,29992]} 1. e4 {[%emt 0:00:03]} c5 {[%emt 0:00:03]} 2. Nf3 {[%emt 0:00:05]} d6 {[%emt 0:00:03]} 3. d4 {[%emt 0:00:05]} cxd4 {[%emt 0:00:03]} 4. Nxd4 {[%emt 0:00:09]} Nf6 {[%emt 0:00:02]} 5. Nc3 {[%emt 0:00:16]} Nc6 {[%emt 0:00:06]} 6. Bc4 {[%emt 0:00:11]} e6 {[%emt 0:00:21]} 7. Bb3 {[%emt 0:00:53]} Be7 {[%emt 0:00:08]} 8. Be3 {[%emt 0:00:57]} a6 {[%emt 0:00:48]} 9. Qe2 {[%emt 0:01:26]} Qc7 {[%emt 0:00:08]} 10. O-O-O {[%emt 0:01:29]} O-O {[%emt 0:00:09]} 11. Rhg1 {[%emt 0:01:27]} Nxd4 {[%emt 0:00:36]} 12. Bxd4 {[%emt 0:02:51]} b5 {[%emt 0:04:11] B89: Sicilian: Velimirovic Attack.} 13. g4 $1 {[%emt 0:08:48][%cal Bg2g4,Bg4g5][%mdl 32]} Nd7 {[%emt 0:01:28]} 14. g5 $1 {[%emt 0:07:32] Hoping for Qh5.} Nc5 {[%emt 0:11:44] The position is equal.} 15. Qh5 {[%emt 0:14:31][%cal Od4f6] Strongly threatening Bf6!} b4 {[%emt 0:05:03] [#]} (15... Bb7 $1 $11 {keeps the balance.}) 16. Rg3 {[%emt 0:01:22] White is more active.} (16. Qh6 $1 $16 {[%csl Gd4][%cal Rh6g7]} e5 17. Nd5 gxh6 18. Nxc7 (18. gxh6+ Kh8 $16)) 16... Nxb3+ {[%emt 0:11:21]} (16... bxc3 $5 17. Rh3 $8 {[#]} Bxg5+ $1 18. Qxg5 f6 $11) 17. axb3 {[%emt 0:00:56]} Qa5 $2 {[%emt 0:03:05][%mdl 8192] [#]} (17... bxc3 $11 18. Rh3 Bxg5+ 19. Qxg5 e5 20. Rxc3 Qb7) 18. Nd5 $146 {[%emt 0:08:35][%mdl 512]} ({Predecessor:} 18. Na4 e5 19. Be3 Be6 20. Kb1 Rab8 21. f4 exf4 22. Bxf4 Rfd8 23. Rgd3 Rb5 24. h4 {½-½ (33) Enjuto Velasco,R-Palacios Perez,M (2160) Torrevieja 1995}) 18... exd5 {[%emt 0:06:56] [#]} (18... Qxd5 19. exd5) 19. Qh6 $3 {[%emt 0:00:09][%mdl 512] Weighted Error Value: White=0.29 (precise) /Black=0.71} 1-0

[Event "Germany Countries-chT Youth 2022"]
[Site "Wiesbaden"]
[Date "2022.10.03"]
[Round "5"]
[White "Kempe, Caius Emilian"]
[Black "Hagner, Bennet"]
[Result "1/2-1/2"]
[ECO "E10"]
[WhiteElo "2030"]
[BlackElo "2253"]
[Annotator "RC"]
[PlyCount "176"]
[EventDate "2022.09.28"]
[EventType "team-tourn"]
[EventRounds "7"]
[EventCountry "GER"]
[SourceTitle "playchess.com"]
[Source "ChessBase"]
[SourceQuality "1"]
[TimeControl "40/5400+30:1800+30"]

1. d4 {[%emt 0:00:02]} Nf6 {[%emt 0:00:04]} 2. c4 {[%emt 0:00:11]} e6 {[%emt 0:00:05]} 3. Nf3 {[%emt 0:00:08]} d5 {[%emt 0:00:06]} 4. cxd5 {[%emt 0:00:13]} exd5 {[%emt 0:00:06]} 5. Bg5 {[%emt 0:00:18]} c6 {[%emt 0:01:27]} 6. Nc3 {[%emt 0:00:16]} h6 {[%emt 0:00:13]} 7. Bh4 {[%emt 0:00:08]} Bf5 {[%emt 0:00:11]} 8. Qb3 {[%emt 0:01:08]} g5 {[%emt 0:00:55]} 9. Bg3 {[%emt 0:01:01]} Qb6 {[%emt 0:00:05]} 10. Nd2 {[%emt 0:13:00]} Nbd7 {[%emt 0:01:06]} 11. e3 {[%emt 0:00:07]} Nh5 {[%emt 0:02:14]} 12. Be2 {[%emt 0:03:18]} Nxg3 {[%emt 0:10:33]} 13. hxg3 {[%emt 0:00:02]} Nf6 {[%emt 0:00:26]} 14. Rc1 {[%emt 0:06:14]} O-O-O {[%emt 0:12:46]} 15. Na4 {[%emt 0:02:04]} Qc7 {[%emt 0:05:01]} 16. Qc3 {[%emt 0:02:39]} Bd6 {[%emt 0:07:31]} 17. b4 {[%emt 0:01:58]} a6 {[%emt 0:04:49]} 18. Nc5 {[%emt 0:01:03]} Bg4 {[%emt 0:16:58]} 19. a4 {[%emt 0:07:15]} Bxe2 {[%emt 0:01:58]} 20. Kxe2 {[%emt 0:00:35]} Qb6 {[%emt 0:08:58]} 21. Rc2 {[%emt 0:03:18]} Kb8 {[%emt 0:00:59]} 22. Rb1 {[%emt 0:02:40]} Rhe8 {[%emt 0:05:56]} 23. b5 {[%emt 0:01:47]} cxb5 {[%emt 0:00:09]} 24. axb5 {[%emt 0:00:06]} axb5 {[%emt 0:01:43]} 25. Rcb2 {[%emt 0:00:14]} Bxc5 {[%emt 0:00:48]} 26. Rxb5 {[%emt 0:05:34]} Bxd4 {[%emt 0:00:58]} 27. Qb4 {[%emt 0:08:08]} Qa6 {[%emt 0:05:06]} 28. Qxd4 {[%emt 0:00:15]} Ne4 {[%emt 0:00:01]} 29. Nxe4 {[%emt 0:22:53]} dxe4 {[%emt 0:02:29]} 30. Qb6 {[%emt 0:00:07]} Qxb6 {[%emt 0:04:13]} 31. Rxb6 {[%emt 0:00:08]} Re7 {[%emt 0:00:05]} 32. Rxh6 {[%emt 0:00:08]} Rd5 {[%emt 0:00:12]} 33. Rhb6 {[%emt 0:00:42]} Rc7 {[%emt 0:02:05]} 34. R1b2 {[%emt 0:01:09]} Rdc5 {[%emt 0:01:33]} 35. Kd2 {[%emt 0:00:25]} Ka7 {[%emt 0:00:47]} 36. R6b4 {[%emt 0:00:08]} Rc4 {[%emt 0:01:30]} 37. Rb5 {[%emt 0:00:04]} f6 {[%emt 0:00:35]} 38. Ra5+ {[%emt 0:00:07]} Kb8 {[%emt 0:00:02]} 39. Rab5 {[%emt 0:00:49]} Rd7+ {[%emt 0:02:17]} 40. Ke2 {[%emt 0:00:17]} Ka7 {[%emt 0:01:24]} 41. Ra5+ {[%emt 0:30:16]} Kb8 {[%emt 0:30:02]} 42. Rab5 {[%emt 0:00:12]} Rc6 {[%emt 0:00:00]} 43. R5b4 {[%emt 0:00:00]} Re7 {[%emt 0:00:00]} 44. g4 {[%emt 0:00:00]} Ka7 {[%emt 0:00:00]} 45. Ra4+ {[%emt 0:00:00]} Ra6 {[%emt 0:00:00]} 46. Rd4 {[%emt 0:00:00]} Rae6 {[%emt 0:00:00]} 47. Ra4+ {[%emt 0:00:00]} Kb8 {[%emt 0:00:00]} 48. Rab4 {[%emt 0:00:00]} Rh7 {[%emt 0:00:00]} 49. R2b3 {[%emt 0:00:00]} Kc8 {[%emt 0:00:00]} 50. Rb2 {[%emt 0:00:00]} Rhe7 {[%emt 0:00:00]} 51. Rb5 {[%emt 0:00:00]} Kb8 {[%emt 0:00:00]} 52. R5b4 {[%emt 0:00:00]} Rc7 {[%emt 0:00:00]} 53. Kd2 {[%emt 0:00:00]} Rd7+ {[%emt 0:00:00]} 54. Ke2 {[%emt 0:00:00]} Rde7 {[%emt 0:00:00]} 55. Rb5 {[%emt 0:00:00]} Ka7 {[%emt 0:00:00]} 56. Ra5+ {[%emt 0:00:00]} Ra6 {[%emt 0:00:00]} 57. Rab5 {[%emt 0:00:00]} b6 {[%emt 0:00:00]} 58. Rf5 {[%emt 0:00:00]} Re6 {[%emt 0:00:00]} 59. Rfb5 {[%emt 0:00:00]} Ra5 {[%emt 0:01:10]} 60. R5b4 {[%emt 0:00:00]} Ka6 {[%emt 0:01:18]} 61. f3 {[%emt 0:00:00]} Rc5 {[%emt 0:04:15]} 62. Ra4+ {[%emt 0:00:00]} Kb7 {[%emt 0:00:07]} 63. Rab4 {[%emt 0:00:00]} Ka6 {[%emt 0:00:59]} 64. Ra4+ {[%emt 0:00:00]} Ra5 {[%emt 0:00:13]} 65. Rab4 {[%emt 0:00:00]} Rd5 {[%emt 0:02:26]} 66. Ra4+ {[%emt 0:00:00]} Kb7 {[%emt 0:00:02]} 67. Rab4 {[%emt 0:00:00]} Rc5 {[%emt 0:00:48]} 68. Kf2 {[%emt 0:00:00]} Ka6 {[%emt 0:00:34]} 69. Ra4+ {[%emt 0:00:00]} Ra5 {[%emt 0:00:01]} 70. Rab4 {[%emt 0:00:00]} Ra3 {[%emt 0:00:27]} 71. Rb5 {[%emt 0:00:00]} Rc3 {[%emt 0:01:22]} 72. R5b4 {[%emt 0:00:00]} Ra3 {[%emt 0:00:35]} 73. Rb5 {[%emt 0:00:00]} Rd3 {[%emt 0:00:06]} 74. R5b4 {[%emt 0:00:00]} Rc3 {[%emt 0:00:04]} 75. Ra4+ {[%emt 0:00:00]} Kb7 {[%emt 0:00:03]} 76. Rab4 {[%emt 0:00:00]} Rd3 {[%emt 0:01:35]} 77. fxe4 {[%emt 0:00:00]} Rc3 {[%emt 0:00:24]} 78. Kf3 {[%emt 0:00:00]} Rc5 {[%emt 0:00:08]} 79. Kf2 {[%emt 0:00:00]} Ka6 {[%emt 0:00:12]} 80. Ra4+ {[%emt 0:00:00]} Ra5 {[%emt 0:00:12]} 81. Rab4 {[%emt 0:00:00]} b5 {[%emt 0:00:43]} 82. Kf3 {[%emt 0:00:00]} Kb6 {[%emt 0:01:31]} 83. Rd4 {[%emt 0:00:00]} Kc6 {[%emt 0:01:11]} 84. Rd5 {[%emt 0:00:00]} Kb6 {[%emt 0:00:45]} 85. Rd4 {[%emt 0:00:00]} Ka6 {[%emt 0:00:54]} 86. Rd5 {[%emt 0:00:00]} Rb6 {[%emt 0:00:30]} 87. e5 {[%emt 0:00:10]} b4 {[%emt 0:00:02]} 88. Rd4 {[%emt 0:00:04]} b3 {[%emt 0:01:20]} 1/2-1/2

[Event "Germany Countries-chT Youth 2022"]
[Site "Wiesbaden"]
[Date "2022.10.03"]
[Round "5"]
[White "Kocharin, Timur"]
[Black "Haubold, Christian Lucas"]
[Result "1-0"]
[ECO "E92"]
[WhiteElo "1971"]
[BlackElo "1888"]
[Annotator "TA"]
[PlyCount "73"]
[EventDate "2022.09.28"]
[EventType "team-tourn"]
[EventRounds "7"]
[EventCountry "GER"]
[SourceTitle "playchess.com"]
[Source "ChessBase"]
[SourceQuality "1"]
[TimeControl "40/5400+30:1800+30"]

{[%evp 21,73,-5,20,16,67,66,58,65,60,58,128,117,364,377,378,358,367,362,550,534,756,754,750,740,731,804,804,787,797,795,781,762,760,777,761,766,724,696,868,847,1070,909,906,906,890,884,920,891,10606,6644,5272,5247,1319,1060]} 1. d4 {[%emt 0:00:27]} Nf6 {[%emt 0:00:19]} 2. c4 {[%emt 0:00:13]} g6 {[%emt 0:00:12]} 3. Nc3 {[%emt 0:00:39]} Bg7 {[%emt 0:00:16]} 4. e4 {[%emt 0:00:21]} d6 {[%emt 0:00:21]} 5. Be2 {[%emt 0:00:26]} O-O {[%emt 0:00:44]} 6. Nf3 {[%emt 0:00:29]} e5 {[%emt 0:01:44]} 7. dxe5 {[%emt 0:00:53]} dxe5 {[%emt 0:00:11]} 8. Qxd8 {[%emt 0:00:08]} Rxd8 {[%emt 0:00:05]} 9. Bg5 {[%emt 0:00:13]} Re8 {[%emt 0:01:53]} 10. Nd5 {[%emt 0:01:34]} Nxd5 {[%emt 0:01:05]} 11. cxd5 {[%emt 0:00:16]} h6 {[%emt 0:09:28]} 12. Be3 {[%emt 0:02:59] E92: King's Indian: Classical: 6 Be2 e5: 7 dxe5, 7 Be3 and Petrosian System without 7...Nbd7.} f5 {[%emt 0:07:05]} (12... c6) (12... c6 $11) 13. Rc1 {[%emt 0:04:33] White is more active.} c6 {[%emt 0:12:34]} 14. Bc4 {[%emt 0:05:34] Black must now prevent dxc6+. White is slightly better.} Kh7 {[%emt 0:01:53]} 15. h4 {[%emt 0:23:11][%cal Of3g5,Bh2h4,Bh4g5][%mdl 32] [#]} f4 $146 {[%emt 0:07:48]} (15... fxe4 $2 {[#]} 16. Ng5+ $1 {[%mdl 512]} hxg5 17. hxg5+ Bh6 18. dxc6 (18. gxh6 Bf5 $16) (18. Rxh6+ Kg7 $18) 18... Nxc6 19. Bf7 $18 (19. Rxh6+ Kg7 $16)) (15... Bf6 $14) ({Predecessor:} 15... fxe4 16. Ng5+ hxg5 17. hxg5+ Kg8 18. dxc6+ Kf8 19. Bc5+ Re7 20. cxb7 Bxb7 21. Bxe7+ Kxe7 22. Rd1 Nc6 23. Rh7 Kf8 24. Rd7 {1-0 (24) Pech,J (899)-Ramos,F (1451) FICGS email 2015}) 16. Ng5+ $1 $16 {[%emt 0:04:55]} hxg5 $2 {[%emt 0:15:32]} (16... Kh8 $16) 17. hxg5+ $18 {[%emt 0:00:32]} Bh6 {[%emt 0:00:05]} (17... Kg8 18. dxc6+ Kf8 19. Bc5+ Re7 20. cxb7 Bxb7 21. Bxe7+ Kxe7 22. Rh7) (17... Kg8 $2 18. dxc6+ Kf8 19. Bc5+ Re7 20. cxb7 Bxb7 21. Bxe7+ Kxe7 22. Rh7 $18) 18. Rxh6+ {[%emt 0:01:33]} Kg7 {[%emt 0:00:05]} 19. Bd2 {[%emt 0:00:59]} b5 {[%emt 0:04:51]} (19... Nd7 {is a better defense.} 20. Bd3 c5) 20. Bb3 {[%emt 0:01:47] White is clearly winning.} Bb7 {[%emt 0:00:29]} 21. Ke2 {[%emt 0:01:16]} Rh8 {[%emt 0:01:01]} 22. Rxh8 {[%emt 0:03:39]} Kxh8 {[%emt 0:00:08]} 23. Ba5 {[%emt 0:01:01]} cxd5 {[%emt 0:08:30]} 24. exd5 {[%emt 0:02:33]} Nd7 {[%emt 0:04:12]} 25. Rc7 {[%emt 0:00:36][%csl LRb7,LRd7]} Bc8 {[%emt 0:00:06]} 26. d6 {[%emt 0:00:38]} b4 {[%emt 0:05:51]} 27. Bd5 {[%emt 0:05:46]} Rb8 {[%emt 0:00:26]} 28. Ke1 {[%emt 0:01:14] [#] And now Be6 would win.} Nf8 {[%emt 0:00:57] Against Be6} 29. Bc6 {[%emt 0:01:22]} Ne6 {[%emt 0:01:59]} 30. Re7 {[%emt 0:02:11]} b3 {[%emt 0:02:31]} 31. a3 {[%emt 0:02:14]} Nd4 {[%emt 0:00:33]} 32. d7 {[%emt 0:05:46]} Bxd7 {[%emt 0:00:44]} 33. Bxd7 {[%emt 0:00:07] Bc7 is the strong threat. A strong pair of Bishops.} (33. Rxd7 Nxc6 34. Bc3 Rb5 $16) 33... Nc2+ {[%emt 0:00:22]} 34. Kd2 {[%emt 0:00:28] Strongly threatening Bc7.} Nxa3 {[%emt 0:00:25]} 35. Bc7 {[%emt 0:00:40]} ({Weaker is} 35. bxa3 b2 36. Re8+ (36. Bf5 $2 gxf5 37. Re8+ Rxe8 $19) 36... Rxe8 $16) 35... Nc4+ {[%emt 0:00:40]} 36. Kc3 {[%emt 0:00:32]} Rb7 {[%emt 0:00:07]} 37. Be6 {[%emt 0:00:06] Black did not feel at home in the position after the opening.  Weighted Error Value: White=0.06 (flawless) /Black=0.60} 1-0

[Event "Germany Countries-chT Youth 2022"]
[Site "Wiesbaden"]
[Date "2022.10.03"]
[Round "5"]
[White "Grossmann, Piet"]
[Black "Weishaeutel, Moritz"]
[Result "0-1"]
[ECO "B22"]
[WhiteElo "1945"]
[BlackElo "2401"]
[Annotator "ChessBase"]
[PlyCount "102"]
[EventDate "2022.09.28"]
[EventType "team-tourn"]
[EventRounds "7"]
[EventCountry "GER"]
[SourceTitle "playchess.com"]
[Source "ChessBase"]
[SourceQuality "1"]
[TimeControl "40/5400+30:1800+30"]

1. e4 {[%emt 0:00:02]} c5 {[%emt 0:00:03]} 2. c3 {[%emt 0:00:09]} Nf6 {[%emt 0:00:13]} 3. e5 {[%emt 0:00:10]} Nd5 {[%emt 0:00:03]} 4. d4 {[%emt 0:00:07]} cxd4 {[%emt 0:00:05]} 5. cxd4 {[%emt 0:00:05]} d6 {[%emt 0:00:10]} 6. Nf3 {[%emt 0:00:13]} Nc6 {[%emt 0:00:04]} 7. Bc4 {[%emt 0:00:28]} dxe5 {[%emt 0:00:13]} 8. Nxe5 {[%emt 0:00:36]} e6 {[%emt 0:02:11]} 9. O-O {[%emt 0:03:21]} Bd6 {[%emt 0:06:37]} 10. Re1 {[%emt 0:15:25]} O-O {[%emt 0:00:16]} 11. Nc3 {[%emt 0:00:42]} Nxc3 {[%emt 0:02:32]} 12. bxc3 {[%emt 0:00:05]} Qc7 {[%emt 0:20:30]} 13. Bd3 {[%emt 0:29:39]} Nxe5 {[%emt 0:06:44]} 14. dxe5 {[%emt 0:00:10]} Be7 {[%emt 0:00:16]} 15. Qf3 {[%emt 0:12:27]} Bd7 {[%emt 0:07:45]} 16. Bf4 {[%emt 0:00:40]} Bc6 {[%emt 0:01:31]} 17. Qh3 {[%emt 0:10:22]} g6 {[%emt 0:00:07]} 18. Re3 {[%emt 0:00:49]} Rfd8 {[%emt 0:04:01]} 19. Qh6 {[%emt 0:01:13]} Bf8 {[%emt 0:01:21]} 20. Qh4 {[%emt 0:00:04]} Qa5 {[%emt 0:11:05]} 21. Rh3 {[%emt 0:07:21]} h5 {[%emt 0:00:03]} 22. Rc1 {[%emt 0:00:05]} Qd5 {[%emt 0:04:40]} 23. Rg3 {[%emt 0:00:59]} Rd7 {[%emt 0:03:08]} 24. Re1 {[%emt 0:04:20]} Bg7 {[%emt 0:04:50]} 25. h3 {[%emt 0:01:44]} Qxa2 {[%emt 0:02:30]} 26. Bg5 {[%emt 0:04:03]} Qa5 {[%emt 0:04:53]} 27. Bf6 {[%emt 0:00:17]} Qxc3 {[%emt 0:00:11]} 28. Ree3 {[%emt 0:00:20]} Rd4 {[%emt 0:03:47]} 29. Qg5 {[%emt 0:01:00]} Qc1+ {[%emt 0:00:30]} 30. Kh2 {[%emt 0:00:39]} Rxd3 {[%emt 0:00:08]} 31. Rxd3 {[%emt 0:04:16]} Qxg5 {[%emt 0:00:04]} 32. Rxg5 {[%emt 0:02:05]} Bh6 {[%emt 0:00:06]} 33. h4 {[%emt 0:01:07]} Bxg5 {[%emt 0:00:03]} 34. hxg5 {[%emt 0:00:04]} Kf8 {[%emt 0:00:48]} 35. Rh3 {[%emt 0:00:59]} Ke8 {[%emt 0:08:53]} 36. g4 {[%emt 0:00:05]} h4 {[%emt 0:00:02]} 37. Rxh4 {[%emt 0:00:30]} Kd7 {[%emt 0:00:03]} 38. Rh7 {[%emt 0:00:10]} Bd5 {[%emt 0:00:03]} 39. Rxf7+ {[%emt 0:00:11]} Kc6 {[%emt 0:00:04]} 40. Bg7 {[%emt 0:02:51]} a5 {[%emt 0:01:07]} 41. Rf8 {[%emt 0:07:22]} Rxf8 {[%emt 0:03:26]} 42. Bxf8 {[%emt 0:00:08]} b5 {[%emt 0:00:03]} 43. f4 {[%emt 0:01:19]} b4 {[%emt 0:00:35]} 44. f5 {[%emt 0:00:10]} exf5 {[%emt 0:00:04]} 45. gxf5 {[%emt 0:00:05]} gxf5 {[%emt 0:00:06]} 46. Kg3 {[%emt 0:00:14]} Kb5 {[%emt 0:00:45]} 47. Kf4 {[%emt 0:00:04]} Be6 {[%emt 0:00:56]} 48. Ke3 {[%emt 0:00:23]} a4 {[%emt 0:01:07]} 49. Kd3 {[%emt 0:00:23]} a3 {[%emt 0:00:25]} 50. Kc2 {[%emt 0:00:18]} b3+ {[%emt 0:01:36]} 51. Kb1 {[%emt 0:00:06]} Ka4 {[%emt 0:00:04]} 0-1

[Event "Germany Countries-chT Youth 2022"]
[Site "Wiesbaden"]
[Date "2022.10.03"]
[Round "5"]
[White "Rudolph, Eva"]
[Black "Yue, Qizhou"]
[Result "0-1"]
[ECO "B01"]
[WhiteElo "1911"]
[BlackElo "1711"]
[Annotator "TA"]
[PlyCount "134"]
[EventDate "2022.09.28"]
[EventType "team-tourn"]
[EventRounds "7"]
[EventCountry "GER"]
[SourceTitle "playchess.com"]
[Source "ChessBase"]
[SourceQuality "1"]
[TimeControl "40/5400+30:1800+30"]

{[%evp 9,134,21,47,39,61,46,54,22,33,0,0,0,-8,-7,0,-54,0,-10,0,-7,2,-86,79,79,70,52,37,44,57,13,9,-91,13,21,12,0,8,11,10,17,12,12,5,0,212,140,137,125,127,-37,0,-47,-49,-200,0,-132,0,-29,-29,-29,0,0,0,-21,-32,-183,-193,-186,-36,-36,-37,-29,0,0,0,0,0,-38,-38,-106,-36,-36,-7,-7,-7,-8,-8,-225,-149,-160,-158,-252,-216,-2931,-2723,-4133,-3850,-4367,-2163,-1870,-591,-4865,-3962,-2412,-820,-1517,-884,-1672,-1665,-1510,-1092,-29965,-29966,-5081,-296,-4602,-8,-29956,-12341,-29971,-29972,-29972,-29973,-29980,-29981,-29981,-29982]} 1. e4 {[%emt 0:00:03]} d5 {[%emt 0:00:07]} 2. exd5 {[%emt 0:00:07]} Qxd5 {[%emt 0:00:06]} 3. Nc3 {[%emt 0:00:10]} Qd8 {[%emt 0:00:07]} 4. d4 {[%emt 0:01:16]} Nf6 {[%emt 0:00:11]} 5. Bc4 {[%emt 0:04:05]} g6 {[%emt 0:00:51]} 6. Nf3 {[%emt 0:02:08] B01: Scandinavian Defence.} Bg7 {[%emt 0:00:20]} 7. Bg5 {[%emt 0:06:35]} O-O {[%emt 0:02:19]} 8. Qd2 {[%emt 0:07:00] White is slightly better.} a6 {[%emt 0:01:43]} 9. a4 {[%emt 0:07:00]} Nc6 {[%emt 0:02:13] [#]} 10. Rd1 $146 {[%emt 0:11:53]} ({Predecessor:} 10. O-O b6 11. Rad1 Bb7 12. d5 Nb4 13. Bxf6 exf6 14. Na2 Nxa2 15. Bxa2 f5 16. c3 {½-½ (49) Rutten,A (2104)-Klasan,V (2298) Veliko Gradiste 2021}) 10... Bg4 {[%emt 0:05:59]} 11. Be2 {[%emt 0:03:33]} Bf5 {[%emt 0:07:55]} 12. h4 {[%emt 0:05:57]} (12. d5 Nb4 13. Nd4) (12. d5 $11 Nb4 13. Nd4) 12... h5 {[%emt 0:05:01]} (12... Nb4) 13. d5 {[%emt 0:06:55]} Nb4 {[%emt 0:03:09]} 14. Nd4 {[%emt 0:00:13]} Qd7 {[%emt 0:11:13]} 15. Bf3 {[%emt 0:03:49]} (15. O-O) (15. O-O $11) 15... Ng4 $2 {[%emt 0:07:41]} (15... Bg4) (15... Bg4 $17 {stays on course.}) 16. Nxf5 $16 {[%emt 0:03:46]} Qxf5 {[%emt 0:00:44]} 17. Ne4 {[%emt 0:02:53]} a5 {[%emt 0:04:10]} 18. c3 {[%emt 0:02:45]} (18. Bxe7 Rfe8 19. Qg5 (19. d6 cxd6 20. O-O Rxe7) 19... f6 20. Qxf5 gxf5) (18. Bxe7 $2 Rfe8 19. Qg5 (19. d6 $2 cxd6 20. O-O Rxe7 $19) 19... f6 20. Qxf5 gxf5 $19) 18... Na6 {[%emt 0:00:16]} 19. O-O {[%emt 0:00:48]} (19. Bxe7 $2 Rfe8 20. Qg5 f6 21. Qxf5 gxf5 $19) (19. Ng3 $5 {[%cal Rg3f5]} Qd7 20. O-O $11) 19... Ne5 $1 {[%emt 0:02:59]} 20. Bxe7 {[%emt 0:07:33]} (20. Qe3 $11) 20... Nxf3+ {[%emt 0:03:23]} (20... Rfe8 21. d6 Qxf3 22. gxf3 Nxf3+ 23. Kg2 Nxd2 24. Nxd2 Nc5) (20... Rfe8 $17 21. d6 Qxf3 $1 22. gxf3 Nxf3+ 23. Kg2 Nxd2 24. Nxd2 Nc5) 21. gxf3 $11 {[%emt 0:00:08]} Rfe8 {[%emt 0:09:16]} 22. d6 $36 {[%emt 0:01:44][%mdl 2048] White is more active.} cxd6 {[%emt 0:00:45]} 23. Nxd6 {[%emt 0:01:00]} Qxf3 {[%emt 0:03:11]} 24. Nxe8 {[%emt 0:01:33]} Qg4+ {[%emt 0:01:42]} 25. Kh2 {[%emt 0:03:27]} Rxe8 {[%emt 0:00:28]} 26. Qg5 {[%emt 0:13:24]} Qe2 {[%emt 0:04:08]} (26... Rxe7 $1 $11 {and Black is okay.} 27. Rd8+ (27. Qxe7 Qf4+ 28. Kg2 Qg4+ 29. Kh1 Qh3+ 30. Kg1 Qg4+ 31. Kh2 Qf4+ 32. Kg2 Qg4+ 33. Kh2 $11) 27... Kh7 28. Qxe7 Qf4+ 29. Kg2 (29. Kg1 Qg4+ 30. Kh2 Qf4+ 31. Kg2 Qg4+ 32. Kh2 $11) 29... Qg4+ 30. Kh1 Qh3+ 31. Kg1 Qg4+ 32. Kh2 Qf4+ 33. Kg2 (33. Kg1 Qg4+ 34. Kh2 $11) 33... Qg4+ 34. Kh2) 27. Bf6 {[%emt 0:02:15]} Qxb2 {[%emt 0:01:23]} 28. Bxg7 {[%emt 0:01:03]} Kxg7 {[%emt 0:00:09]} 29. c4 {[%emt 0:01:01]} (29. Qxa5 Re6 30. Qd5) (29. Qxa5 $16 Re6 30. Qd5) 29... Re2 {[%emt 0:01:09][%mdl 1024] Black has compensation.} (29... Re4 $5 {[%cal Ra6c7]}) 30. Qg3 {[%emt 0:00:28]} (30. Qxa5 Rxf2+ 31. Rxf2 Qxf2+ 32. Kh3 Qf3+ 33. Kh2 Qxd1) (30. Qf4) (30. Qxa5 $2 Rxf2+ 31. Rxf2 Qxf2+ 32. Kh3 Qf3+ 33. Kh2 Qxd1 $19) (30. Qf4 $11) 30... Nc5 $15 {[%emt 0:01:36]} 31. Rb1 $2 {[%emt 0:00:30]} (31. Rd5 $15 Ne6 32. Kh1 (32. Rxa5 Re4 $17)) 31... Qc2 $2 {[%emt 0:04:12]} (31... Qf6 $1 $19 32. Rbe1 Ne4) 32. Rbc1 {[%emt 0:00:21] [#]} (32. Rbe1) (32. Rbe1 $1 $11) 32... Qb2 {[%emt 0:07:41] Black is much more active.} ({And not} 32... Qxa4 33. Rfe1 Rxe1 34. Qc3+ Kh7 35. Rxe1 $15) ({Better is} 32... Qf5 $1 $17 {And now ...Ne4 would win.} 33. Qg5 Qe4) 33. Qc3+ {[%emt 0:00:45]} (33. Rb1 $5 {[%cal Rb1b2]} Qf6 34. Rbe1 $19) 33... Qxc3 {[%emt 0:00:28]} 34. Rxc3 {[%emt 0:00:00]} Nxa4 $11 {[%emt 0:01:19][%mdl 4096] Endgame KRR-KRN} 35. Ra3 {[%emt 0:00:50]} Nb6 {[%emt 0:04:21]} 36. Rc3 {[%emt 0:00:54]} Re4 {[%emt 0:00:42][%csl LRc4,LRh4]} 37. Kg3 $2 {[%emt 0:00:34]} (37. Rb1 $15 Nxc4 38. Rxb7) 37... Rg4+ $19 {[%emt 0:01:05]} ({Not} 37... Rxc4 38. Rxc4 Nxc4 39. Kf4 $15) 38. Kh3 {[%emt 0:00:07]} Rxc4 {[%emt 0:02:03]} (38... Nxc4 $19 {Threatens to win with ...b5.} 39. Rb1 b6) 39. Rb3 $15 {[%emt 0:00:32]} Nd5 {[%emt 0:01:46]} 40. Rxb7 {[%emt 0:00:18]} Rc3+ {[%emt 0:00:44]} 41. Kh2 {[%emt 0:30:39]} Nf4 {[%emt 0:02:10]} 42. f3 {[%emt 0:00:00][%cal Bf2f3,Bf3f4][%mdl 32]} Rc2+ {[%emt 0:01:29]} 43. Kh1 {[%emt 0:00:00]} Ng2 {[%emt 0:02:45]} 44. Ra7 {[%emt 0:00:00]} (44. Rbb1 $15) 44... Nxh4 {[%emt 0:01:07]} ({Black should try} 44... Ra2 $17 45. f4 Nxh4) 45. Rxa5 {[%emt 0:00:00]} Kf6 {[%emt 0:05:23]} (45... Nf5 $5 {[%cal Rf5g3]} 46. Kg1 Rc3 $15) 46. f4 {[%emt 0:00:00]} Nf5 {[%emt 0:04:35] Strongly threatening ...Ng3+.} 47. Ra6+ {[%emt 0:00:00]} Kg7 {[%emt 0:00:11]} 48. Rfa1 $2 {[%emt 0:00:00]} (48. Kg1 $11 {and White stays safe.}) 48... Ng3+ {[%emt 0:00:30]} 49. Kg1 {[%emt 0:00:00]} Ne2+ {[%emt 0:00:15]} 50. Kf1 {[%emt 0:00:00]} (50. Kf2 $17) 50... Nxf4 $19 {[%emt 0:00:11]} 51. R6a2 $2 {[%emt 0:00:00]} (51. R6a5) 51... Rxa2 {[%emt 0:01:14]} 52. Rxa2 {[%emt 0:00:00] KR-KN} g5 {[%emt 0:00:46] Hoping for ...f5.} 53. Ra6 {[%emt 0:00:00]} f6 {[%emt 0:00:20]} (53... h4 $142 54. Ra5 Kg6 55. Ra6+ f6) 54. Kf2 {[%emt 0:00:00]} Kg6 {[%emt 0:02:50]} (54... h4 $142 55. Ke3 f5) 55. Ra5 {[%emt 0:00:07]} h4 {[%emt 0:01:46] ...g4 is the strong threat.} 56. Kf3 {[%emt 0:00:52]} Nd3 {[%emt 0:03:49]} (56... f5 $142 57. Ra6+ Kf7) 57. Ke4 {[%emt 0:01:24]} Ne5 {[%emt 0:00:41] aiming for ...Kh5.} 58. Ra8 {[%emt 0:00:20]} g4 {[%emt 0:05:15][%cal Bg5g4,Bg4g3,Bg3g2][%mdl 32]} 59. Kf4 {[%emt 0:02:02]} g3 {[%emt 0:02:28] White must now prevent ...Kg7.} 60. Rh8 {[%emt 0:02:17]} Kg7 {[%emt 0:00:20]} 61. Ra8 {[%emt 0:00:52]} Ng6+ $2 {[%emt 0:02:40]} (61... g2 62. Ra1 Kg6) 62. Kg4 $2 {[%emt 0:00:48]} (62. Kf3) 62... Kf7 $2 {[%emt 0:00:50]} (62... f5+ $1 $19 63. Kf3 Ne5+ 64. Kg2 f4) 63. Ra6 $2 {[%emt 0:01:19][%mdl 8192]} (63. Ra7+ $11 Ke6 64. Ra6+ Ke7 65. Ra7+ Ke6 66. Ra6+ Kf7 67. Ra7+ Kf8 68. Ra8+ Kg7 69. Ra1) 63... g2 {[%emt 0:00:23]} 64. Ra1 {[%emt 0:00:08] [#]} f5+ $1 {[%emt 0:00:29] Black mates.} 65. Kh3 {[%emt 0:00:41]} Nf4+ {[%emt 0:00:19]} 66. Kxh4 {[%emt 0:01:25]} Ne2 {[%emt 0:00:12]} 67. Kg5 {[%emt 0:00:08]} Ke6 {What a fight!  Weighted Error Value: White=0.81/Black=0.51} 0-1